bitfinex/quotes_SOLUSD_20220306
["timestamp","ask_amount","ask_price","bid_price","bid_amount"]
[1646578848140,1.55895192,87.302,87.26,17.1857]
[1646578848339,1.55895192,87.307,87.26,33.6557]
[1646578848538,16.47,87.38,87.261,41.67879]
[1646578848539,1.55895192,87.315,87.261,41.67879]
[1646578848738,1.55895192,87.315,87.261,42.8881211]
[1646578848943,1.55895192,87.317,87.262,103.72514993]
[1646578849142,1.55895192,87.317,87.269,183.05]
[1646578849340,1.55895192,87.324,87.29,17.1831]
[1646578849540,1.55895192,87.332,87.29,17.1831]
[1646578849741,1.55895192,87.334,87.29,33.6531]
[1646578849940,1.55895192,87.334,87.291,27.92453708]
[1646578850142,48.7234287,87.345,87.291,90.54585379]
[1646578850342,48.7234287,87.345,87.292,27.92453708]
[1646578850743,48.7234287,87.345,87.3,17.1837]
[1646578854058,5.724,87.354,87.301,27.92453708]
[1646578854253,1.55895192,87.36,87.31,17.1817]
[1646578854953,50.76917572,87.359,87.31,17.1817]
[1646578855355,1.55895192,87.358,87.31,17.1817]
[1646578855553,5.724,87.357,87.31,17.1817]
[1646578856471,5.724,87.358,87.31,17.1817]
[1646578858777,50.76917572,87.359,87.31,17.1817]
[1646578859376,114.6,87.358,87.31,17.1817]
[1646578859575,50.76917572,87.359,87.31,17.1817]
[1646578859776,50.76917572,87.359,87.3,17.1868]
[1646578859976,114.6,87.358,87.3,17.1868]
[1646578860175,5.724,87.357,87.3,17.1868]
[1646578860378,5.724,87.358,87.3,17.1868]
[1646578860779,120.324,87.358,87.3,17.1868]
[1646578861178,5.724,87.358,87.3,17.1868]
[1646578861578,1.55895192,87.353,87.29,17.1889]
[1646578861780,5.724,87.352,87.29,17.1889]
[1646578862180,7.28295192,87.352,87.29,17.1889]
[1646578862379,114.6,87.35,87.29,17.1889]
[1646578862580,114.6,87.35,87.28,17.1913]
[1646578862581,0.46061411,87.345,87.28,17.1913]
[1646578862777,0.46061411,87.341,87.28,17.1913]
[1646578862977,5.726,87.34,87.28,17.1913]
[1646578863180,114.6,87.338,87.26,23.4062]
[1646578863379,1.55895192,87.329,87.26,23.4062]
[1646578863579,63.93771983,87.327,87.261,53.13041531]
[1646578863780,114.6,87.325,87.26,17.1953]
[1646578863979,0.46379552,87.323,87.259,25.08840182]
[1646578864179,5.727,87.322,87.26,5.727]
[1646578864381,0.46379552,87.321,87.245,29.1332]
[1646578864579,0.46379552,87.319,87.245,29.1332]
[1646578864779,5.728,87.318,87.246,25.08840182]
[1646578865080,5.728,87.318,87.26,17.1951]
[1646578865380,120.328,87.319,87.261,5.728]
[1646578865578,120.328,87.319,87.26,17.1951]
[1646578865779,5.728,87.319,87.26,17.1951]
[1646578865979,5.728,87.319,87.261,5.728]
[1646578866482,5.728,87.319,87.27,17.1936]
[1646578867081,114.6,87.322,87.261,30.81640182]
[1646578867280,5.727,87.321,87.248,25.08840182]
[1646578867581,5.727,87.321,87.249,5.728]
[1646578867980,5.727,87.321,87.25,25.08840182]
[1646578868181,114.6,87.319,87.251,5.728]
[1646578868381,5.728,87.318,87.251,5.728]
[1646578868579,17.1953,87.32,87.251,5.728]
[1646578868580,5.728,87.319,87.251,5.728]
[1646578868781,5.728,87.319,87.252,25.08840182]
[1646578869184,5.728,87.319,87.253,5.728]
[1646578869584,5.728,87.319,87.254,25.08840182]
[1646578870083,5.728,87.319,87.26,17.1954]
[1646578871082,17.197,87.31,87.254,25.08840182]
[1646578871283,28.3368,87.309,87.254,25.08840182]
[1646578872086,60.18033594,87.308,87.254,25.08840182]
[1646578872285,120.328,87.307,87.254,25.08840182]
[1646578872585,120.328,87.307,87.25,17.1974]
[1646578873285,5.728,87.307,87.25,17.1974]
[1646578873886,5.728,87.307,87.251,25.08840182]
[1646578878595,60.18033594,87.308,87.251,25.08840182]
[1646578878996,60.18033594,87.308,87.26,17.1956]
[1646578879195,60.18033594,87.308,87.261,62.7464635]
[1646578879799,22.6088,87.309,87.261,87.83486532]
[1646578880396,22.6088,87.309,87.27,17.1931]
[1646578881198,5.728,87.312,87.261,87.83486532]
[1646578881397,1.55895192,87.326,87.27,56.00928807]
[1646578881599,1.55895192,87.331,87.27,56.00928807]
[1646578881798,1.55895192,87.332,87.27,56.00928807]
[1646578881997,1.55895192,87.331,87.27,56.00928807]
[1646578882198,59.7931948,87.329,87.27,56.00928807]
[1646578882425,5.727,87.328,87.27,56.00928807]
[1646578883606,23.9152,87.327,87.27,30.92088625]
[1646578883802,5.727,87.326,87.27,30.92088625]
[1646578885702,23.9152,87.327,87.27,30.92088625]
[1646578886213,1.55895192,87.326,87.27,30.92088625]
[1646578887004,7.28595192,87.325,87.27,17.1935]
[1646578887605,1.55895192,87.321,87.262,24.9457]
[1646578887803,5.727,87.32,87.262,24.9457]
[1646578888002,1.55895192,87.319,87.262,24.9457]
[1646578888203,5.728,87.318,87.262,24.9457]
[1646578888405,22.6114,87.317,87.261,62.7464635]
[1646578888605,60.45961689,87.315,87.261,62.7464635]
[1646578888806,5.728,87.314,87.261,62.7464635]
[1646578889205,5.728,87.314,87.27,17.1932]
[1646578890006,7.28695192,87.314,87.27,17.1932]
[1646578891508,7.28695192,87.314,87.26,17.1949]
[1646578892007,1.55895192,87.31,87.26,17.1949]
[1646578892209,1.55895192,87.303,87.243,23.0026]
[1646578892407,1.55895192,87.298,87.243,23.0026]
[1646578892610,1.55895192,87.297,87.243,23.0026]
[1646578893209,47.7921571,87.296,87.25,17.197]
[1646578895014,114.6,87.295,87.24,17.1989]
[1646578895214,5.729,87.294,87.24,17.1989]
[1646578895614,1.55895192,87.293,87.24,17.1989]
[1646578896116,1.55895192,87.291,87.24,17.1989]
[1646578896615,1.55895192,87.291,87.241,24.16673814]
[1646578896916,1.55895192,87.293,87.25,17.1966]
[1646578897115,5.729,87.292,87.25,17.1966]
[1646578899540,5.729,87.294,87.25,17.1966]
[1646578899738,24.285,87.295,87.25,17.1966]
[1646578901339,5.729,87.294,87.25,17.1966]
[1646578901735,24.285,87.295,87.25,17.1966]
[1646578904438,5.729,87.294,87.25,17.1966]
[1646578907743,24.285,87.295,87.25,17.1966]
[1646578910744,5.729,87.294,87.25,17.1966]
[1646578915954,7.28795192,87.294,87.24,17.1985]
[1646578916155,1.55895192,87.291,87.24,17.1985]
[1646578916356,7.28795192,87.29,87.24,17.1985]
[1646578916960,60.82072798,87.287,87.24,17.1985]
[1646578917157,66.54972798,87.287,87.24,17.1985]
[1646578917359,66.54972798,87.287,87.241,23.55082414]
[1646578917760,60.82072798,87.287,87.241,24.76015524]
[1646578918658,60.82072798,87.287,87.242,23.55082414]
[1646578919060,60.82072798,87.287,87.25,17.1969]
[1646578920563,62.3796799,87.287,87.25,17.1969]
[1646578921480,60.82072798,87.287,87.242,23.55082414]
[1646578921862,1.55895192,87.283,87.242,23.55082414]
[1646578922262,1.55895192,87.282,87.24,12.54841758]
[1646578922461,1.55895192,87.279,87.24,12.54841758]
[1646578923160,1.55895192,87.279,87.24,29.74731758]
[1646578924863,1.55895192,87.28,87.24,29.74731758]
[1646578925061,1.55895192,87.28,87.24,53.29814172]
[1646578925462,116.88795192,87.286,87.24,53.29814172]
[1646578925661,5.729,87.286,87.24,54.50747282]
[1646578925862,5.729,87.286,87.241,2.83613526]
[1646578926269,5.729,87.286,87.242,24.76015524]
[1646578926564,5.729,87.286,87.25,17.197]
[1646578928764,60.82072798,87.287,87.25,17.197]
[1646578929368,60.82072798,87.287,87.251,2.83613526]
[1646578929767,60.82072798,87.287,87.252,23.55082414]
[1646578929966,60.82072798,87.287,87.253,46.95120967]
[1646578930568,60.82072798,87.287,87.241,5.729]
[1646578932268,5.729,87.286,87.241,5.729]
[1646578932469,5.729,87.286,87.242,23.55082414]
[1646578932872,23.0716,87.285,87.242,23.55082414]
[1646578934677,23.0716,87.285,87.241,5.729]
[1646578935079,5.729,87.284,87.241,5.729]
[1646578937279,120.329,87.284,87.241,5.729]
[1646578937481,128.689,87.284,87.241,5.729]
[1646578937879,17.2029,87.28,87.241,5.729]
[1646578938079,120.329,87.279,87.241,5.729]
[1646578938279,114.6,87.277,87.241,5.729]
[1646578938480,114.6,87.275,87.241,5.729]
[1646578938696,114.6,87.272,87.241,5.729]
[1646578939000,0.40451814,87.268,87.241,5.729]
[1646578939200,0.40451814,87.266,87.241,5.729]
[1646578939897,114.6,87.265,87.241,1.32910836]
[1646578940098,0.47796358,87.262,87.241,1.32910836]
[1646578940299,0.47796358,87.262,87.21,17.2049]
[1646578940698,0.47796358,87.26,87.21,17.2049]
[1646578940898,0.47796358,87.261,87.21,17.2049]
[1646578941303,114.6,87.258,87.187,23.55082414]
[1646578941500,115.259248,87.256,87.15,16.47]
[1646578941699,0.659248,87.253,87.172,2.83613526]
[1646578941898,0.659248,87.25,87.172,2.83613526]
[1646578942099,0.659248,87.248,87.159,23.2534]
[1646578942302,114.6,87.246,87.159,54.43982683]
[1646578942499,118.73593344,87.244,87.159,54.43982683]
[1646578942698,114.6,87.239,87.159,54.43982683]
[1646578942900,0.659248,87.228,87.16,17.2159]
[1646578943100,0.659248,87.226,87.16,17.2159]
[1646578943301,114.6,87.224,87.16,17.2159]
[1646578943501,114.6,87.222,87.16,17.2159]
[1646578943702,114.6,87.22,87.16,17.2159]
[1646578943903,0.37297947,87.219,87.16,17.2159]
[1646578944106,114.6,87.217,87.16,17.2159]
[1646578944306,114.6,87.215,87.159,54.43982683]
[1646578944503,7.71,87.224,87.15,17.2177]
[1646578944504,114.6,87.213,87.15,17.2177]
[1646578944705,0.40502421,87.212,87.15,17.2177]
[1646578944906,114.6,87.213,87.15,17.2177]
[1646578945103,114.6,87.211,87.15,17.2177]
[1646578945304,114.6,87.209,87.15,17.2177]
[1646578945503,114.6,87.207,87.151,56.07326165]
[1646578945703,114.6,87.205,87.151,56.07326165]
[1646578946103,114.6,87.203,87.151,56.07326165]
[1646578946303,5.735,87.202,87.16,17.216]
[1646578946502,5.735,87.212,87.16,17.216]
[1646578946704,114.6,87.211,87.151,56.07326165]
[1646578946905,114.6,87.209,87.151,56.07326165]
[1646578947105,114.6,87.207,87.151,56.07326165]
[1646578947304,60.83720966,87.214,87.151,56.07326165]
[1646578947305,114.6,87.205,87.151,56.07326165]
[1646578947510,114.6,87.203,87.151,56.07326165]
[1646578947706,114.6,87.199,87.151,56.07326165]
[1646578947911,114.6,87.197,87.151,56.07326165]
[1646578948105,5.735,87.198,87.151,56.07326165]
[1646578948308,5.735,87.202,87.151,56.07326165]
[1646578949208,17.2176,87.21,87.151,56.07326165]
[1646578949209,114.6,87.205,87.151,56.07326165]
[1646578949408,114.6,87.203,87.151,56.07326165]
[1646578949611,5.735,87.202,87.151,56.07326165]
[1646578950218,5.735,87.202,87.16,17.2161]
[1646578950712,5.735,87.204,87.16,17.2161]
[1646578951012,5.735,87.204,87.139,2.83613526]
[1646578951013,114.6,87.211,87.139,2.83613526]
[1646578951214,114.6,87.2,87.1,24.0653]
[1646578951414,114.6,87.189,87.1,24.0653]
[1646578951613,114.6,87.187,87.1,24.0653]
[1646578951812,23.3107,87.189,87.1,24.0653]
[1646578951813,0.54135584,87.184,87.1,24.0653]
[1646578952014,114.6,87.179,87.101,58.81051878]
[1646578952213,114.6,87.159,87.101,58.81051878]
[1646578952413,114.6,87.155,87.101,58.81051878]
[1646578953114,53.55412135,87.156,87.101,58.81051878]
[1646578953714,53.55412135,87.156,87.11,17.2258]
[1646578954116,23.3107,87.158,87.11,17.2258]
[1646578954317,23.3107,87.158,87.101,58.81051878]
[1646578955021,5.738,87.178,87.12,17.2238]
[1646578955221,52.20237836,87.194,87.121,54.50626147]
[1646578955416,52.20237836,87.194,87.121,57.34239673]
[1646578955617,52.20237836,87.194,87.121,58.55172783]
[1646578955817,52.20237836,87.194,87.122,28.440645]
[1646578956218,52.20237836,87.194,87.123,28.440645]
[1646578956620,52.20237836,87.194,87.124,27.2313139]
[1646578957020,52.20237836,87.194,87.125,2.83613526]
[1646578957222,52.20237836,87.194,87.141,56.81685365]
[1646578958622,52.20237836,87.194,87.15,17.216]
[1646578958822,5.735,87.193,87.15,17.216]
[1646578959022,5.735,87.198,87.15,17.216]
[1646578959823,56.78858235,87.197,87.15,17.216]
[1646578960426,5.735,87.198,87.15,17.216]
[1646578960625,24.3664,87.199,87.15,17.216]
[1646578960825,5.735,87.232,87.15,17.216]
[1646578961024,23.5533,87.231,87.151,2.83613526]
[1646578961229,5.734,87.23,87.151,2.83613526]
[1646578961423,61.68549108,87.229,87.171,48.93091448]
[1646578961625,5.732,87.228,87.171,48.93091448]
[1646578961826,114.6,87.227,87.171,48.93091448]
[1646578962025,5.734,87.226,87.171,48.93091448]
[1646578962227,5.734,87.228,87.171,48.93091448]
[1646578963027,114.6,87.227,87.171,48.93091448]
[1646578963425,5.734,87.228,87.171,48.93091448]
[1646578963625,114.6,87.227,87.171,48.93091448]
[1646578963825,5.734,87.228,87.171,48.93091448]
[1646578965127,114.6,87.227,87.171,48.93091448]
[1646578965331,5.734,87.226,87.171,48.93091448]
[1646578965530,5.734,87.228,87.171,48.93091448]
[1646578967536,114.6,87.219,87.151,2.83613526]
[1646578967729,138.3573,87.219,87.15,17.2164]
[1646578967929,114.6,87.217,87.15,17.2164]
[1646578968132,114.6,87.215,87.15,17.2164]
[1646578968430,57.56887753,87.212,87.151,57.44708354]
[1646578968629,5.735,87.211,87.151,57.44708354]
[1646578969234,17.2184,87.21,87.151,57.44708354]
[1646578969434,5.735,87.209,87.151,57.44708354]
[1646578969634,0.37131844,87.207,87.15,17.2164]
[1646578969833,17.2184,87.21,87.15,17.2164]
[1646578969834,0.37233888,87.204,87.15,17.2164]
[1646578970035,120.335,87.203,87.15,17.2164]
[1646578970639,17.2191,87.2,87.15,17.2164]
[1646578970841,55.91604132,87.198,87.15,17.2164]
[1646578971039,5.735,87.197,87.15,17.2164]
[1646578972453,55.91604132,87.198,87.15,17.2164]
[1646578975556,5.735,87.197,87.15,17.2164]
[1646578976356,55.91604132,87.198,87.15,17.2164]
[1646578979461,5.735,87.197,87.15,17.2164]
[1646578979665,5.735,87.201,87.15,20.05253526]
[1646578979863,24.5506,87.202,87.15,20.05253526]
[1646578981464,24.5506,87.202,87.15,17.2164]
[1646578982064,5.735,87.201,87.15,17.2164]
[1646578982863,5.735,87.201,87.15,20.05253526]
[1646578983063,24.5506,87.202,87.15,20.05253526]
[1646578987369,5.735,87.21,87.15,20.05253526]
[1646578987570,62.48049155,87.211,87.15,20.05253526]
[1646578990769,24.3768,87.218,87.151,5.735]
[1646578990971,24.3768,87.218,87.17,17.2108]
[1646578991671,24.3768,87.218,87.171,54.12068046]
[1646578991971,24.3768,87.218,87.18,17.2117]
[1646579000586,5.734,87.236,87.18,17.2117]
[1646579000785,3.06142266,87.248,87.181,2.83613526]
[1646579000986,29.6484,87.258,87.181,2.83613526]
[1646579000987,5.732,87.247,87.2,17.2053]
[1646579001186,4.66837723,87.273,87.2,17.2053]
[1646579001187,3.06142266,87.263,87.2,17.2053]
[1646579001385,6.27141651,87.258,87.201,2.83613526]
[1646579001584,62.16629005,87.265,87.201,62.64771859]
[1646579001785,6.2713163,87.264,87.201,86.74541859]
[1646579001988,5.731,87.263,87.21,17.2022]
[1646579002185,5.731,87.264,87.21,17.2022]
[1646579002388,5.731,87.274,87.21,17.2022]
[1646579002588,23.9164,87.273,87.21,17.2022]
[1646579002891,6.27088336,87.272,87.211,2.83613526]
[1646579003189,6.27088336,87.272,87.22,17.2011]
[1646579003388,23.9164,87.273,87.221,52.30040371]
[1646579003788,5.73,87.272,87.221,52.30040371]
[1646579004593,23.9164,87.273,87.221,52.30040371]
[1646579005190,23.9164,87.273,87.23,17.1984]
[1646579005590,47.67159018,87.272,87.221,52.30040371]
[1646579005791,5.73,87.271,87.221,52.30040371]
[1646579006207,17.2054,87.27,87.21,17.2044]
[1646579006406,5.731,87.269,87.21,17.2044]
[1646579006605,5.731,87.271,87.21,17.2044]
[1646579007211,5.731,87.271,87.211,63.21063189]
[1646579007407,5.731,87.271,87.22,17.2044]
[1646579007607,120.331,87.271,87.211,63.21063189]
[1646579007808,120.331,87.271,87.201,24.0977]
[1646579008511,17.2056,87.27,87.21,17.206]
[1646579008711,114.6,87.269,87.21,17.206]
[1646579008909,47.67159018,87.272,87.21,17.206]
[1646579010814,5.731,87.271,87.21,17.206]
[1646579015017,47.67159018,87.272,87.21,17.206]
[1646579015718,47.67159018,87.272,87.21,43.83064724]
[1646579015917,47.67159018,87.272,87.22,17.2011]
[1646579016118,47.67159018,87.272,87.221,48.74828654]
[1646579016719,23.9164,87.273,87.222,2.83613526]
[1646579017821,51.52171235,87.272,87.222,2.83613526]
[1646579018321,51.52171235,87.272,87.23,17.1999]
[1646579022322,23.9164,87.273,87.23,17.1999]
[1646579022924,5.73,87.297,87.231,2.83613526]
[1646579023124,30.77900618,87.296,87.231,2.83613526]
[1646579023324,61.9360424,87.295,87.25,17.1976]
[1646579023523,61.9360424,87.295,87.251,53.12696935]
[1646579024526,114.6,87.294,87.24,17.2]
[1646579024725,120.86954037,87.293,87.231,2.83613526]
[1646579024925,6.26954037,87.292,87.231,2.83613526]
[1646579025127,6.26954037,87.292,87.222,24.6943]
[1646579025525,6.26954037,87.292,87.223,59.96854186]
[1646579025726,5.73,87.291,87.223,59.96854186]
[1646579025926,5.73,87.291,87.24,17.2001]
[1646579026125,6.26954037,87.29,87.24,17.2001]
[1646579026326,5.729,87.289,87.24,17.2001]
[1646579026526,6.26954037,87.288,87.24,17.2001]
[1646579026726,5.729,87.287,87.24,17.2001]
[1646579027128,5.729,87.294,87.24,17.2001]
[1646579027330,6.26952335,87.293,87.24,17.2001]
[1646579027633,5.729,87.292,87.24,17.2001]
[1646579027830,6.26952335,87.291,87.24,17.2001]
[1646579028230,114.6,87.29,87.24,17.2001]
[1646579028433,114.6,87.288,87.24,17.2001]
[1646579028832,114.6,87.286,87.24,17.2001]
[1646579029031,29.50929068,87.285,87.24,17.2001]
[1646579029330,6.26959068,87.284,87.24,17.2001]
[1646579031833,5.729,87.283,87.24,17.2001]
[1646579032235,50.98570134,87.281,87.24,17.2001]
[1646579032460,56.71470134,87.281,87.24,17.2001]
[1646579032642,50.98570134,87.281,87.24,17.2001]
[1646579033035,5.729,87.28,87.24,17.2001]
[1646579036835,50.98570134,87.281,87.24,17.2001]
[1646579038438,6.26975086,87.28,87.235,48.57305327]
[1646579039439,6.26975086,87.28,87.23,17.2019]
[1646579039639,0.41875218,87.279,87.23,17.2019]
[1646579039842,0.59055508,87.277,87.201,24.9354]
[1646579040039,3.06142266,87.273,87.201,24.9354]
[1646579040240,3.66581332,87.272,87.201,24.9354]
[1646579040441,3.06142266,87.27,87.201,24.9354]
[1646579040641,23.11029066,87.269,87.202,54.5834485]
[1646579040839,12.00075086,87.268,87.202,54.5834485]
[1646579041039,57.83697504,87.267,87.202,54.5834485]
[1646579041240,12.00075086,87.266,87.21,17.2062]
[1646579041440,6.87414152,87.265,87.21,17.2062]
[1646579041739,12.00075086,87.264,87.21,17.2062]
[1646579041939,6.26975086,87.263,87.21,17.2062]
[1646579042139,5.731,87.262,87.21,17.2062]
[1646579042539,5.731,87.265,87.21,17.2062]
[1646579042740,114.6,87.263,87.21,17.2062]
[1646579042940,12.38700185,87.262,87.21,17.2062]
[1646579043142,6.27091967,87.261,87.21,17.2062]
[1646579043339,5.731,87.26,87.21,17.2062]
[1646579043839,24.1546,87.259,87.21,17.2062]
[1646579044040,5.731,87.258,87.21,17.2062]
[1646579045543,1.55333008,87.243,87.21,17.2062]
[1646579046239,1.55333008,87.242,87.21,17.2062]
[1646579048142,1.55333008,87.243,87.21,17.2062]
[1646579048842,1.55333008,87.244,87.21,17.2062]
[1646579049743,1.55333008,87.245,87.21,17.2062]
[1646579050744,1.55333008,87.246,87.21,17.2062]
[1646579053250,114.6,87.283,87.21,17.2062]
[1646579053251,1.55333008,87.253,87.21,17.2062]
[1646579053452,1.55333008,87.261,87.211,2.83613526]
[1646579053649,1.55333008,87.265,87.22,17.1967]
[1646579053948,1.55333008,87.266,87.22,17.1967]
[1646579054147,1.55333008,87.267,87.221,66.67239752]
[1646579054549,1.55333008,87.27,87.221,66.67239752]
[1646579055147,1.55333008,87.269,87.23,17.1987]
[1646579055953,1.55333008,87.269,87.221,66.67239752]
[1646579056150,17.2068,87.26,87.221,63.83626226]
[1646579056349,1.55333008,87.26,87.221,63.83626226]
[1646579056551,1.55333008,87.256,87.221,63.83626226]
[1646579056951,60.95981244,87.256,87.211,23.1928]
[1646579057150,26.18433008,87.255,87.199,14.36856179]
[1646579057351,1.55333008,87.254,87.199,14.36856179]
[1646579057759,1.55333008,87.254,87.22,17.2035]
[1646579058257,24.631,87.255,87.22,17.2035]
[1646579058460,1.55333008,87.259,87.22,17.2035]
[1646579058756,1.55333008,87.259,87.221,57.73359949]
[1646579059157,1.55333008,87.259,87.23,17.2005]
[1646579059757,1.55333008,87.259,87.221,57.73359949]
[1646579060257,1.55333008,87.253,87.221,57.73359949]
[1646579060457,1.55333008,87.252,87.221,57.73359949]
[1646579061359,1.55333008,87.251,87.221,57.73359949]
[1646579061557,5.731,87.267,87.221,57.73359949]
[1646579061558,1.55333008,87.252,87.221,57.73359949]
[1646579062158,5.731,87.267,87.221,57.73359949]
[1646579062159,1.55333008,87.251,87.221,57.73359949]
[1646579064078,1.55333008,87.25,87.221,57.73359949]
[1646579065179,1.55333008,87.254,87.23,17.2016]
[1646579065381,1.55333008,87.264,87.23,17.2016]
[1646579065679,1.55333008,87.265,87.23,17.2016]
[1646579066079,6.2693802,87.287,87.221,57.73359949]
[1646579066080,1.55333008,87.262,87.24,17.1996]
[1646579066283,1.55333008,87.261,87.241,54.78471923]
[1646579066680,1.55333008,87.262,87.241,54.78471923]
[1646579066880,1.55333008,87.26,87.241,54.78471923]
[1646579067581,1.55333008,87.259,87.241,54.78471923]
[1646579067882,1.55333008,87.26,87.241,54.78471923]
[1646579068082,1.55333008,87.262,87.241,54.78471923]
[1646579068481,1.55333008,87.264,87.241,54.78471923]
[1646579068984,1.55333008,87.263,87.241,54.78471923]
[1646579069882,1.55333008,87.264,87.241,54.78471923]
[1646579070886,1.55333008,87.265,87.241,54.78471923]
[1646579071087,1.55333008,87.266,87.241,54.78471923]
[1646579071488,1.55333008,87.267,87.25,17.1965]
[1646579071686,1.55333008,87.268,87.25,17.1965]
[1646579073088,1.55333008,87.268,87.241,54.78471923]
[1646579074089,1.55333008,87.268,87.25,17.1966]
[1646579074288,1.55333008,87.269,87.25,17.1966]
[1646579075088,1.55333008,87.268,87.241,54.78471923]
[1646579075294,1.55333008,87.266,87.241,54.78471923]
[1646579075990,1.55333008,87.265,87.241,54.78471923]
[1646579076490,1.55333008,87.265,87.23,17.2001]
[1646579077088,1.55333008,87.265,87.231,5.73]
[1646579077489,1.55333008,87.267,87.232,57.10762016]
[1646579078091,1.55333008,87.267,87.24,17.1985]
[1646579078691,1.55333008,87.266,87.24,17.1985]
[1646579080595,1.55333008,87.265,87.24,17.1985]
[1646579080795,1.55333008,87.264,87.24,17.1985]
[1646579080996,1.55333008,87.265,87.24,17.1985]
[1646579081697,1.55333008,87.264,87.24,17.1985]
[1646579081895,1.55333008,87.265,87.24,17.1985]
[1646579082997,1.55333008,87.264,87.24,17.1985]
[1646579084099,1.55333008,87.263,87.24,17.1985]
[1646579084302,1.55333008,87.264,87.24,17.1985]
[1646579084500,1.55333008,87.268,87.24,17.1985]
[1646579085104,1.55333008,87.268,87.241,63.18657386]
[1646579086101,1.55333008,87.268,87.25,17.1962]
[1646579086903,1.55333008,87.267,87.241,63.18657386]
[1646579087301,1.55333008,87.268,87.241,63.18657386]
[1646579089002,1.55333008,87.267,87.241,63.18657386]
[1646579089202,1.55333008,87.267,87.25,17.1966]
[1646579089404,1.55333008,87.268,87.25,17.1966]
[1646579089603,1.55333008,87.267,87.25,17.1966]
[1646579090403,1.55333008,87.268,87.25,17.1966]
[1646579090603,1.55333008,87.269,87.25,17.1966]
[1646579091104,1.55333008,87.268,87.25,17.1966]
[1646579091704,1.55333008,87.268,87.241,63.18657386]
[1646579092308,1.55333008,87.266,87.241,63.18657386]
[1646579093605,1.55333008,87.266,87.25,17.1967]
[1646579094104,1.55333008,87.265,87.25,17.1967]
[1646579094508,1.55333008,87.266,87.25,17.1967]
[1646579095204,1.55333008,87.263,87.25,17.1967]
[1646579100111,1.55333008,87.275,87.25,17.1967]
[1646579100309,1.55333008,87.274,87.251,5.729]
[1646579100511,1.55333008,87.275,87.26,17.1934]
[1646579100812,1.55333008,87.274,87.26,17.1934]
[1646579101411,1.55333008,87.277,87.26,17.1934]
[1646579101813,1.55333008,87.276,87.26,17.1934]
[1646579102217,1.55333008,87.285,87.27,17.1919]
[1646579102516,1.55333008,87.286,87.271,46.33691794]
[1646579103117,1.55333008,87.285,87.271,46.33691794]
[1646579103316,1.55333008,87.285,87.26,17.1943]
[1646579103731,1.55333008,87.282,87.26,17.1943]
[1646579104137,1.55333008,87.281,87.26,17.1943]
[1646579104343,1.55333008,87.281,87.261,59.9104307]
[1646579104739,1.55333008,87.281,87.27,17.1927]
[1646579105539,1.55333008,87.283,87.27,17.1927]
[1646579106542,1.55333008,87.282,87.27,17.1927]
[1646579106744,1.55333008,87.282,87.261,59.9104307]
[1646579107245,1.55333008,87.285,87.261,59.9104307]
[1646579108045,1.55333008,87.288,87.261,59.9104307]
[1646579108247,1.55333008,87.287,87.27,17.192]
[1646579108444,23.7197,87.301,87.261,59.9104307]
[1646579108445,1.55333008,87.285,87.261,59.9104307]
[1646579108846,1.55333008,87.279,87.261,59.9104307]
[1646579109048,1.55333008,87.278,87.261,59.9104307]
[1646579109447,1.55333008,87.278,87.26,17.1941]
[1646579111149,1.55333008,87.277,87.26,17.1941]
[1646579111647,1.55333008,87.278,87.26,17.1941]
[1646579112248,1.55333008,87.279,87.26,17.1941]
[1646579112451,1.55333008,87.278,87.26,17.1941]
[1646579113752,1.55333008,87.277,87.26,17.1941]
[1646579113953,1.55333008,87.278,87.25,17.1963]
[1646579114353,1.55333008,87.279,87.25,17.1963]
[1646579114982,1.55333008,87.279,87.25,70.2816194]
[1646579115353,1.55333008,87.278,87.25,70.2816194]
[1646579117156,1.55333008,87.277,87.25,70.2816194]
[1646579117756,5.729,87.296,87.25,70.2816194]
[1646579117757,1.55333008,87.276,87.25,70.2816194]